bitfinex/quotes_BTCUSD_20240803
["timestamp","ask_amount","ask_price","bid_price","bid_amount"]
[1722701755538,2.80238989,60984.0,60983.0,0.012142]
[1722701755700,2.83238989,60984.0,60983.0,0.012142]
[1722701755903,2.88462332,60984.0,60983.0,0.012142]
[1722701756105,2.91228213,60984.0,60983.0,0.012142]
[1722701756282,2.40256619,60984.0,60983.0,0.012142]
[1722701756483,2.30153589,60984.0,60983.0,0.012142]
[1722701756685,2.60153589,60984.0,60983.0,0.012142]
[1722701757093,2.30153589,60984.0,60983.0,0.012142]
[1722701757290,2.14407665,60984.0,60983.0,0.012142]
[1722701757631,1.71612265,60984.0,60983.0,0.012142]
[1722701757858,2.04407665,60984.0,60983.0,0.012142]
[1722701757988,2.37203065,60984.0,60983.0,0.012142]
[1722701758421,2.62948989,60984.0,60983.0,0.012142]
[1722701758771,2.83238989,60984.0,60983.0,0.012142]
[1722701759137,2.68099091,60984.0,60983.0,0.012142]
[1722701759417,2.62948989,60984.0,60983.0,0.012142]
[1722701759682,2.30153589,60984.0,60983.0,0.012142]
[1722701759893,2.35303691,60984.0,60983.0,0.012142]
[1722701760107,2.04407665,60984.0,60983.0,0.012142]
[1722701760317,1.61032265,60984.0,60983.0,0.012142]
[1722701760518,2.09573589,60984.0,60983.0,0.012142]
[1722701760782,1.93827665,60984.0,60983.0,0.012142]
[1722701761396,2.60803589,60984.0,60983.0,0.012142]
[1722701761628,2.70803589,60984.0,60983.0,0.012142]
[1722701761829,3.21888989,60984.0,60983.0,0.012142]
[1722701762035,3.21888989,60984.0,60974.0,0.010142]
[1722701762036,1.476013,60975.0,60974.0,0.010142]
[1722701762182,1.68796494,60975.0,60974.0,0.010142]
[1722701762361,1.78796494,60975.0,60974.0,0.010142]
[1722701762560,1.94542418,60975.0,60974.0,0.010142]
[1722701762792,4.17863018,60975.0,60974.0,0.010142]
[1722701762963,1.924436,60974.0,60973.0,1e-06]
[1722701763181,1.924436,60974.0,60957.0,0.010153]
[1722701763182,0.820182,60962.0,60957.0,0.010153]
[1722701763378,6.38734283,60962.0,60957.0,0.010153]
[1722701763603,0.675057,60956.0,60930.0,0.1086]
[1722701763804,1.83683124,60956.0,60930.0,0.1086]
[1722701764145,2.47778363,60956.0,60930.0,0.1086]
[1722701764326,2.49778363,60956.0,60930.0,0.1086]
[1722701764481,2.93818863,60956.0,60930.0,0.1086]
[1722701764680,2.89004226,60956.0,60930.0,0.1086]
[1722701764878,2.89004226,60956.0,60955.0,1e-06]
[1722701765310,3.24754124,60956.0,60955.0,1e-06]
[1722701765509,3.24754124,60956.0,60922.0,0.010153]
[1722701765510,2.653302,60945.0,60935.0,0.47251164]
[1722701765766,6.49070214,60945.0,60935.0,0.47251164]
[1722701765971,6.54195293,60945.0,60922.0,0.010153]
[1722701766147,6.66195293,60945.0,60922.0,0.010153]
[1722701766547,6.66195293,60945.0,60942.0,1e-06]
[1722701766548,1.812887,60943.0,60942.0,1e-06]
[1722701766751,2.61257318,60943.0,60942.0,1e-06]
[1722701767002,3.03375622,60943.0,60942.0,1e-06]
[1722701767182,2.32440622,60943.0,60942.0,1e-06]
[1722701767718,1.99404698,60943.0,60942.0,1e-06]
[1722701767926,1.99404698,60943.0,60942.0,0.001001]
[1722701767927,0.90518894,60943.0,60942.0,0.001001]
[1722701768120,1.06264818,60943.0,60942.0,0.001001]
[1722701768326,1.43598045,60943.0,60942.0,0.001001]
[1722701768551,1.39082318,60943.0,60942.0,0.001001]
[1722701769147,1.38482318,60943.0,60942.0,1e-06]
[1722701769347,1.24136394,60943.0,60942.0,1e-06]
[1722701769551,2.20167835,60943.0,60942.0,1e-06]
[1722701769755,2.64139818,60943.0,60942.0,0.001001]
[1722701769990,2.41866189,60943.0,60942.0,1e-06]
[1722701770165,2.41966189,60943.0,60942.0,1e-06]
[1722701770523,2.54576189,60943.0,60942.0,1e-06]
[1722701770724,2.45849818,60943.0,60942.0,1e-06]
[1722701770958,2.98357318,60943.0,60942.0,0.001001]
[1722701771171,3.16392835,60943.0,60942.0,0.001001]
[1722701771376,3.74357318,60943.0,60942.0,1e-06]
[1722701771500,3.81083689,60943.0,60942.0,1e-06]
[1722701771913,3.61083689,60943.0,60942.0,1e-06]
[1722701772130,3.53083689,60943.0,60942.0,1e-06]
[1722701772314,4.30869206,60943.0,60942.0,1e-06]
[1722701772513,1.39449,60923.0,60922.0,0.010153]
[1722701772759,4.01108918,60923.0,60922.0,0.02220011]
[1722701772965,4.31108918,60923.0,60922.0,0.010153]
[1722701773308,4.63937218,60923.0,60922.0,0.010153]
[1722701773510,6.11848918,60923.0,60922.0,0.010153]
[1722701773713,1.670223,60921.0,60920.0,5e-07]
[1722701773941,2.36345158,60921.0,60920.0,5e-07]
[1722701774132,2.82794558,60921.0,60920.0,5e-07]
[1722701774273,2.84794558,60921.0,60920.0,5e-07]
[1722701774506,6.08174558,60921.0,60920.0,5e-07]
[1722701774720,5.72345158,60921.0,60920.0,5e-07]
[1722701774925,6.01045158,60921.0,60920.0,5e-07]
[1722701775074,5.95106615,60921.0,60920.0,5e-07]
[1722701775933,5.32277215,60921.0,60920.0,5e-07]
[1722701776307,5.90297624,60921.0,60920.0,5e-07]
[1722701776532,5.7367601,60921.0,60920.0,0.0010005]
[1722701776707,6.5353481,60921.0,60920.0,5e-07]
[1722701777094,6.9243481,60921.0,60920.0,0.0010005]
[1722701777298,6.9363481,60921.0,60920.0,5e-07]
[1722701777502,6.9363481,60921.0,60888.0,0.0005]
[1722701777503,1.065599,60889.0,60888.0,0.0005]
[1722701777699,5.78458659,60889.0,60888.0,0.0005]
[1722701777837,6.10963045,60889.0,60888.0,0.0005]
[1722701778040,6.03673045,60889.0,60888.0,0.0005]
[1722701778244,6.9580051,60889.0,60888.0,0.0005]
[1722701778444,6.83809645,60889.0,60888.0,0.0005]
[1722701778847,6.97470022,60889.0,60888.0,0.0005]
[1722701779276,1.578268,60882.0,60881.0,0.15044532]
[1722701779524,2.14523101,60882.0,60881.0,0.15044532]
[1722701779755,1.6333505,60882.0,60881.0,0.15044532]
[1722701779941,1.06095995,60882.0,60881.0,0.15044532]
[1722701780149,1.33432163,60882.0,60881.0,0.15044532]
[1722701780394,0.62935977,60882.0,60881.0,0.15044532]
[1722701780541,0.164252,60882.0,60881.0,0.39414532]
[1722701780742,0.492756,60882.0,60881.0,0.39414532]
[1722701780966,0.82126,60882.0,60881.0,0.27158013]
[1722701781174,2.11782162,60882.0,60881.0,0.15880186]
[1722701781327,1.063264,60882.0,60881.0,0.15044532]
[1722701781526,1.29035838,60882.0,60881.0,0.15044532]
[1722701781897,1.94922162,60882.0,60881.0,0.15144532]
[1722701782136,2.4213831,60882.0,60881.0,0.15144532]
[1722701782317,2.63324184,60882.0,60881.0,0.15144532]
[1722701782546,2.18976,60879.0,60878.0,0.034293]
[1722701782715,2.18976,60879.0,60853.0,0.00117045]
[1722701782716,1.239957,60860.0,60853.0,0.00117045]
[1722701782886,3.65088543,60860.0,60853.0,0.00117045]
[1722701783087,4.07950843,60860.0,60853.0,0.00117045]
[1722701783292,4.1274121,60860.0,60853.0,0.00117045]
[1722701783533,4.76350843,60860.0,60853.0,0.00117045]
[1722701783872,4.88862125,60860.0,60853.0,0.00117045]
[1722701784093,5.02127839,60860.0,60853.0,0.00117045]
[1722701784287,5.73815656,60860.0,60859.0,1e-07]
[1722701784496,1.623192,60854.0,60853.0,8.3e-07]
[1722701784642,2.44591684,60854.0,60853.0,8.3e-07]
[1722701784843,1.6976047,60854.0,60853.0,8.3e-07]
[1722701785047,2.09074098,60854.0,60853.0,8.3e-07]
[1722701785247,3.57736184,60854.0,60853.0,8.3e-07]
[1722701785446,2.59291526,60854.0,60853.0,8.3e-07]
[1722701785677,2.436137,60854.0,60853.0,8.3e-07]
[1722701785838,2.92225124,60854.0,60853.0,8.3e-07]
[1722701786035,2.73026594,60854.0,60853.0,8.3e-07]
[1722701786298,2.59359624,60854.0,60853.0,8.3e-07]
[1722701786471,2.92225124,60854.0,60853.0,8.3e-07]
[1722701786677,3.35071776,60854.0,60853.0,8.3e-07]
[1722701786879,3.52971776,60854.0,60853.0,8.3e-07]
[1722701787080,3.42181776,60854.0,60853.0,0.00200083]
[1722701787253,3.42181776,60854.0,60853.0,8.3e-07]
[1722701787659,3.34964381,60854.0,60853.0,8.3e-07]
[1722701787862,3.32571239,60854.0,60853.0,8.3e-07]
[1722701788251,3.25991776,60854.0,60853.0,8.3e-07]
[1722701788452,3.50859509,60854.0,60853.0,8.3e-07]
[1722701788651,3.83651733,60854.0,60853.0,8.3e-07]
[1722701788856,3.76547276,60854.0,60853.0,8.3e-07]
[1722701789060,3.78801122,60854.0,60853.0,8.3e-07]
[1722701789261,1.91294478,60854.0,60853.0,8.3e-07]
[1722701789469,0.004,60854.0,60853.0,0.12900083]
[1722701789702,0.168327,60854.0,60853.0,0.12900083]
[1722701789930,0.168327,60854.0,60853.0,8.3e-07]
[1722701789931,1.08409624,60854.0,60853.0,8.3e-07]
[1722701790136,1.59229215,60854.0,60853.0,8.3e-07]
[1722701790397,1.54442637,60854.0,60853.0,8.3e-07]
[1722701790553,1.87808137,60854.0,60853.0,8.3e-07]
[1722701790754,1.87408137,60854.0,60853.0,8.3e-07]
[1722701790979,1.9458748,60854.0,60853.0,8.3e-07]
[1722701791178,1.87908137,60854.0,60853.0,8.3e-07]
[1722701791382,2.04598137,60854.0,60853.0,8.3e-07]
[1722701791585,2.04598696,60854.0,60853.0,8.3e-07]
[1722701791788,2.14598696,60854.0,60853.0,8.3e-07]
[1722701792208,2.00930624,60854.0,60853.0,8.3e-07]
[1722701792396,2.00930624,60854.0,60827.0,0.02951542]
[1722701792397,0.01,60848.0,60827.0,0.02951542]
[1722701792597,0.16199052,60826.0,60825.0,4e-05]
[1722701792824,0.49006288,60826.0,60825.0,4e-05]
[1722701792976,0.81886888,60826.0,60825.0,4e-05]
[1722701793188,0.164403,60826.0,60825.0,4e-05]
[1722701793387,0.493209,60826.0,60825.0,4e-05]
[1722701793612,1.150821,60826.0,60825.0,4e-05]
[1722701794257,2.06738624,60826.0,60825.0,4e-05]
[1722701794432,2.0041144,60826.0,60825.0,4e-05]
[1722701794580,2.0041144,60826.0,60825.0,0.00104]
[1722701794581,2.1780144,60826.0,60825.0,0.00104]
[1722701794786,2.09554712,60826.0,60825.0,0.00104]
[1722701795121,1.7189084,60826.0,60825.0,0.00104]
[1722701795297,1.7189084,60826.0,60825.0,0.13004]
[1722701795298,0.13772816,60826.0,60825.0,0.13004]
[1722701795502,0.13772816,60826.0,60825.0,0.23354]
[1722701795503,0.001,60826.0,60825.0,0.23354]
[1722701795689,0.001,60826.0,60825.0,0.24455906]
[1722701795886,0.002,60826.0,60825.0,0.24455906]
[1722701796130,0.001,60826.0,60825.0,1.24531741]
[1722701796328,0.07875194,60842.0,60832.0,0.164385]
[1722701796529,0.07875194,60842.0,60826.0,0.00157439]
[1722701796530,0.07875194,60833.0,60826.0,0.00157439]
[1722701796742,0.07875194,60833.0,60825.0,0.23254]
[1722701796939,0.07875194,60826.0,60825.0,0.23254]
[1722701797281,0.07975194,60826.0,60825.0,0.23354]
[1722701797530,0.08275194,60826.0,60825.0,0.23354]
[1722701797734,0.08175194,60826.0,60825.0,0.396946]
[1722701797911,0.07875194,60833.0,60825.0,0.23254]
[1722701798115,0.07875194,60833.0,60825.0,0.23354]
[1722701798116,0.07875194,60826.0,60825.0,0.23354]
[1722701798538,0.07875194,60826.0,60825.0,0.10454]
[1722701798711,0.57196094,60826.0,60825.0,0.10454]
[1722701798913,0.07875194,60826.0,60825.0,0.10454]
[1722701799355,0.0785107,60826.0,60825.0,0.10354]
[1722701799770,0.0795107,60826.0,60825.0,0.10454]
[1722701799965,0.2449137,60826.0,60825.0,0.11854]
[1722701800170,0.5737197,60826.0,60825.0,0.11854]
[1722701800385,0.5737197,60826.0,60825.0,0.11754]
[1722701800386,0.9015257,60826.0,60825.0,0.11754]
[1722701800702,0.9025257,60826.0,60825.0,0.01504]
[1722701801118,0.0805107,60826.0,60825.0,0.01504]
[1722701802111,0.0805107,60826.0,60825.0,0.179446]
[1722701802344,0.0805107,60826.0,60825.0,0.01504]
[1722701803267,0.0805107,60826.0,60825.0,0.189446]
[1722701803495,0.0805107,60826.0,60825.0,0.01504]
[1722701805098,0.002,60826.0,60825.0,0.01504]
[1722701805305,0.002,60826.0,60825.0,0.750758]
[1722701805613,0.002,60826.0,60825.0,1.96818496]
[1722701805816,0.002,60826.0,60825.0,1.97018496]
[1722701806027,0.002,60826.0,60825.0,2.14002414]
[1722701806227,0.001,60826.0,60825.0,2.17291414]
[1722701806552,0.002,60826.0,60825.0,2.32220508]
[1722701806750,0.002,60826.0,60825.0,1.99339308]
[1722701807083,0.07875194,60842.0,60833.0,0.03289]
[1722701807377,0.07875194,60842.0,60838.0,0.1035]
[1722701807945,0.773,60848.0,60841.0,0.293362]
[1722701808144,0.07875194,60849.0,60844.0,0.164352]
[1722701808348,0.15745924,60848.0,60842.0,0.04943472]
[1722701808553,0.17875194,60849.0,60838.0,0.1035]
[1722701808751,0.07875194,60849.0,60838.0,0.16293472]
[1722701808957,0.07875194,60842.0,60839.0,0.04943472]
[1722701809160,0.493144,60834.0,60833.0,0.05943472]
[1722701809338,0.07875194,60834.0,60833.0,0.02]
[1722701809543,0.57189594,60834.0,60833.0,0.01]
[1722701809785,0.23621118,60834.0,60825.0,0.00161439]
[1722701809987,0.07875194,60826.0,60825.0,0.000953]
[1722701810193,0.07875194,60834.0,60825.0,0.000953]
[1722701810394,0.07875194,60834.0,60827.0,0.03289]
[1722701810619,0.32877,60833.0,60825.0,0.165358]
[1722701810819,0.24313494,60834.0,60826.0,0.164401]
[1722701810988,0.07875194,60834.0,60831.0,0.164389]
[1722701811391,0.07875194,60834.0,60827.0,0.03289]
[1722701811749,0.07875194,60834.0,60825.0,0.000953]
[1722701811949,0.57189594,60834.0,60833.0,0.004]
[1722701812073,0.90065894,60834.0,60833.0,0.004]
[1722701812271,0.90065894,60834.0,60825.0,0.000953]
[1722701812272,0.493209,60826.0,60825.0,0.013953]
[1722701812520,0.493209,60826.0,60825.0,0.000953]
[1722701812521,0.822015,60826.0,60825.0,0.000953]
[1722701812975,0.822015,60826.0,60814.0,0.0501267]
[1722701812976,0.264433,60815.0,60814.0,0.00069198]
[1722701813125,1.2950954,60815.0,60814.0,0.00069198]
[1722701813326,0.37990416,60815.0,60814.0,0.00069198]
[1722701813531,0.57205094,60815.0,60814.0,0.00069198]
[1722701813747,0.90091694,60815.0,60814.0,0.00069198]
[1722701813952,0.36909497,60820.0,60814.0,0.00069198]
[1722701813953,0.05385763,60819.0,60814.0,0.00069198]
[1722701814159,0.32118365,60820.0,60814.0,0.00069198]
[1722701814160,0.57205094,60815.0,60814.0,0.00069198]
[1722701814397,0.32118365,60820.0,60814.0,0.00069198]
[1722701814596,0.07875194,60815.0,60814.0,0.00069198]
[1722701814791,0.24318494,60815.0,60814.0,0.00069198]
[1722701815020,0.57205094,60815.0,60814.0,0.00069198]
[1722701815475,0.32118365,60820.0,60814.0,0.00069198]
[1722701815624,0.328845,60819.0,60814.0,0.00069198]
[1722701815838,0.164425,60818.0,60814.0,0.00169198]
[1722701816041,0.32118365,60820.0,60814.0,0.00169198]
[1722701816042,0.32118365,60820.0,60814.0,0.00369198]
[1722701816259,0.773,60827.0,60815.0,0.2539]
[1722701816457,0.07875194,60826.0,60815.0,0.2539]
[1722701816658,0.07875194,60819.0,60816.0,0.00143977]
[1722701816871,0.07875194,60819.0,60815.0,0.2539]
[1722701817080,0.07875194,60826.0,60815.0,0.2539]
[1722701817284,0.07875194,60826.0,60816.0,0.08232472]
[1722701817486,0.773,60827.0,60820.0,0.01]
[1722701817697,0.773,60827.0,60821.0,0.03446439]
[1722701817907,0.773,60827.0,60821.0,0.03289]
[1722701818122,0.773,60827.0,60818.0,0.04943472]
[1722701818123,0.07875194,60826.0,60818.0,0.04943472]
[1722701818517,0.07875194,60819.0,60817.0,0.04943472]
[1722701818751,0.07875194,60819.0,60816.0,0.04943472]
[1722701818953,0.07875194,60819.0,60815.0,0.2539]
[1722701818954,0.164427,60818.0,60815.0,0.2539]
[1722701819126,0.49329,60816.0,60815.0,0.1139]
[1722701819378,0.24317394,60819.0,60818.0,0.012]
[1722701819581,0.40759594,60819.0,60818.0,0.012]
[1722701819708,1.22970594,60819.0,60818.0,0.012]
[1722701819912,0.40759594,60819.0,60816.0,0.014]
[1722701820109,0.328855,60817.0,60814.0,0.00069198]
[1722701820317,0.164432,60816.0,60814.0,0.00069198]
[1722701820517,0.822165,60815.0,60814.0,0.00069198]
[1722701820727,1.71873915,60815.0,60814.0,0.00069198]
[1722701820925,2.04760515,60815.0,60814.0,0.00069198]
[1722701821591,2.34150397,60815.0,60814.0,0.00069198]
[1722701821734,2.67072842,60815.0,60814.0,0.00069198]
[1722701821947,2.88982632,60815.0,60814.0,9.8e-07]
[1722701822152,3.05354804,60815.0,60814.0,9.8e-07]
[1722701822355,2.22906,60805.0,60804.0,6.6e-07]
[1722701822583,4.53807274,60805.0,60804.0,6.6e-07]
[1722701822783,4.5380401,60805.0,60804.0,6.6e-07]
[1722701823042,4.56949853,60805.0,60804.0,6.6e-07]
[1722701823272,2.392769,60798.0,60797.0,0.09418882]
[1722701823423,3.28198585,60798.0,60797.0,8.2e-07]
[1722701823598,3.38198585,60798.0,60797.0,8.2e-07]
[1722701823806,3.59517757,60798.0,60797.0,8.2e-07]
[1722701824046,3.7584362,60798.0,60797.0,8.2e-07]
[1722701824253,0.713992,60793.0,60792.0,8e-07]
[1722701824460,1.343042,60785.0,60784.0,1e-08]
[1722701824687,3.7370685,60785.0,60784.0,1e-08]
[1722701824890,4.08307783,60785.0,60784.0,1e-08]
[1722701825102,4.0460965,60785.0,60784.0,1e-08]
[1722701825278,4.11307783,60785.0,60784.0,1e-08]
[1722701825473,4.0660965,60785.0,60784.0,1e-08]
[1722701825711,4.270433,60785.0,60784.0,0.00100001]
[1722701826118,4.13363339,60785.0,60784.0,0.00100001]
[1722701826333,4.26815964,60785.0,60784.0,1e-08]
[1722701826625,4.4418793,60785.0,60784.0,1e-08]
[1722701826832,3.79629913,60785.0,60784.0,1e-08]
[1722701827033,3.49629913,60785.0,60784.0,0.00100001]
[1722701827265,3.54135298,60785.0,60784.0,0.00100001]
[1722701827484,2.78922212,60785.0,60784.0,0.00100001]
[1722701827752,2.69669954,60785.0,60784.0,0.00100001]
[1722701827954,2.53920363,60785.0,60784.0,0.00100001]
[1722701828160,0.32118365,60785.0,60784.0,0.00100001]
[1722701828385,0.1,60792.0,60784.0,0.00100001]
[1722701828597,0.1,60792.0,60785.0,0.00157439]
[1722701828814,0.3690573,60801.0,60788.0,0.164503]
[1722701828815,0.164479,60798.0,60788.0,0.164503]
[1722701829026,0.1,60799.0,60789.0,0.00157439]
[1722701829243,0.32118365,60801.0,60791.0,0.04947044]
[1722701829462,0.19578992,60816.0,60791.0,0.04947044]
[1722701829463,0.04789496,60815.0,60797.0,0.328963]
[1722701829689,0.1,60816.0,60799.0,0.04947044]
[1722701829890,0.1,60816.0,60800.0,0.30494483]
[1722701830105,0.47251164,60813.0,60800.0,0.30494483]
[1722701830307,0.16447,60801.0,60800.0,0.00157439]
[1722701830526,0.16447,60801.0,60795.0,0.001]
[1722701830527,0.822407,60797.0,60796.0,0.00157439]
[1722701830728,0.1,60799.0,60795.0,0.001]
[1722701831337,0.06323971,60801.0,60800.0,0.164473]
[1722701831537,0.09578992,60812.0,60799.0,0.1139]
[1722701831538,0.14789496,60817.0,60799.0,0.1139]
[1722701831750,0.18668413,60815.0,60801.0,0.01]
[1722701831966,0.32118365,60817.0,60807.0,0.04947044]
[1722701832162,0.001,60813.0,60808.0,0.00157439]
[1722701832574,0.001,60813.0,60807.0,0.00157439]
[1722701832794,0.001,60813.0,60809.0,0.04947044]
[1722701832996,0.001,60813.0,60812.0,0.607223]
[1722701833129,0.001,60813.0,60812.0,0.278341]
[1722701833338,0.328829,60822.0,60812.0,0.1139]
[1722701833554,0.07875194,60826.0,60817.0,0.164427]
[1722701833762,0.84159025,60829.0,60818.0,0.14157439]
[1722701833763,0.32118365,60829.0,60818.0,0.14157439]
[1722701833990,0.32118365,60829.0,60823.0,0.328822]
[1722701834194,0.32118365,60829.0,60820.0,0.04947044]
[1722701834195,0.04789496,60843.0,60826.0,0.04947044]
[1722701834409,0.5204066,60848.0,60838.0,0.16437]
[1722701834610,0.164354,60845.0,60836.0,0.164376]
[1722701835008,0.00083,60849.0,60837.0,0.328742]
[1722701835235,0.00083,60849.0,60848.0,0.164343]
[1722701835439,0.00083,60849.0,60848.0,0.68337924]
[1722701835641,0.00083,60849.0,60848.0,0.22499107]
[1722701835845,0.00083,60849.0,60848.0,0.11006837]
[1722701835994,0.00083,60849.0,60846.0,0.0494203]
[1722701836197,0.07875194,60848.0,60838.0,0.1633203]
[1722701836607,0.328736,60839.0,60837.0,0.0564203]
[1722701836809,0.164355,60844.0,60834.0,0.164379]
[1722701837150,0.00083,60849.0,60848.0,0.013]
[1722701837626,0.493853,60849.0,60848.0,0.013]
[1722701837810,0.00083,60849.0,60848.0,0.013]
[1722701838017,0.493853,60849.0,60848.0,0.013]
[1722701838217,0.97999424,60849.0,60848.0,0.013]
[1722701838413,0.821732,60847.0,60846.0,0.013]
[1722701838754,0.821732,60847.0,60837.0,0.002]
[1722701838755,0.328701,60846.0,60837.0,0.002]
[1722701839037,0.165171,60849.0,60837.0,0.002]
[1722701839247,0.09578992,60855.0,60840.0,0.01]
[1722701839248,0.04719348,60855.0,60840.0,0.01]
[1722701839450,0.07875194,60852.0,60841.0,0.20845393]
[1722701839665,0.07875194,60852.0,60841.0,0.15903363]
[1722701839666,0.164344,60848.0,60841.0,0.15903363]
[1722701839883,0.07875194,60852.0,60846.0,0.006]
[1722701840103,0.15059438,60859.0,60848.0,0.004]
[1722701840312,0.164338,60850.0,60849.0,0.00157439]
[1722701840759,0.97915124,60850.0,60849.0,0.00157439]
[1722701840979,0.821705,60849.0,60848.0,0.004]
[1722701841193,1.59010961,60849.0,60848.0,0.004]
[1722701841404,1.59010961,60849.0,60832.0,0.00157439]
[1722701841405,0.493152,60833.0,60832.0,0.00157439]
[1722701841607,0.07875194,60836.0,60832.0,0.00157439]
[1722701841817,0.164395,60829.0,60828.0,0.00157439]
[1722701842024,0.07875194,60833.0,60823.0,0.1139]
[1722701842238,0.41697357,60841.0,60828.0,0.01]
[1722701842239,0.32118365,60841.0,60828.0,0.01]
[1722701842433,0.1,60847.0,60831.0,0.01]
[1722701842644,0.07875194,60842.0,60832.0,0.15903363]
[1722701842874,0.07875194,60842.0,60831.0,0.00157439]
[1722701842875,0.328764,60834.0,60831.0,0.00157439]
[1722701843085,0.07875194,60835.0,60831.0,0.00157439]
[1722701843086,0.164387,60832.0,60831.0,0.00157439]
[1722701843289,0.1,60840.0,60828.0,0.00157439]
[1722701843498,0.40747694,60842.0,60832.0,0.014]
[1722701843708,0.19578992,60846.0,60826.0,0.00157439]
[1722701843709,0.328701,60846.0,60833.0,0.16595739]
[1722701843918,0.164368,60839.0,60833.0,0.00157439]
[1722701844122,0.24311494,60841.0,60831.0,0.00857439]
[1722701844324,0.16436,60842.0,60832.0,0.164386]
[1722701844537,0.16436,60842.0,60833.0,0.00157439]
[1722701844778,0.07875194,60842.0,60833.0,0.00157439]
[1722701844987,0.07875194,60842.0,60832.0,0.00157439]
[1722701845225,0.10083,60849.0,60833.0,0.41135924]
[1722701845450,0.00083,60849.0,60839.0,0.0494203]
[1722701845683,0.00083,60849.0,60838.0,0.07412665]
[1722701845684,0.24311394,60841.0,60840.0,0.00157439]
[1722701845925,0.493096,60840.0,60839.0,0.00157439]
[1722701846146,0.328731,60840.0,60833.0,0.00157439]
[1722701846365,0.493144,60834.0,60833.0,0.00157439]
[1722701846622,0.493144,60834.0,60833.0,0.00757439]
[1722701846829,1.44483942,60834.0,60833.0,0.006]
[1722701847051,0.1,60828.0,60818.0,0.00157439]
[1722701847299,0.164433,60815.0,60814.0,0.00157439]
[1722701847474,0.29416942,60827.0,60810.0,0.00157439]
[1722701847475,0.07875194,60826.0,60810.0,0.00157439]
[1722701847615,0.29419196,60825.0,60814.0,0.01077899]
[1722701847832,0.29419196,60825.0,60809.0,0.00157439]
[1722701847833,0.22943542,60825.0,60809.0,0.00157439]
[1722701848028,0.164444,60811.0,60810.0,0.01082426]
[1722701848233,0.328879,60813.0,60804.0,0.00157439]
[1722701848234,0.328908,60808.0,60804.0,0.00157439]
[1722701848427,0.328866,60815.0,60805.0,0.01088087]
[1722701848657,0.1,60819.0,60813.0,0.07875194]
[1722701848658,0.09600659,60819.0,60813.0,0.07875194]
[1722701848856,0.25794394,60826.0,60820.0,0.1066]
[1722701849068,0.2288603,60840.0,60820.0,0.1066]
[1722701849069,0.1,60842.0,60828.0,0.32879]
[1722701849265,0.1,60842.0,60829.0,0.00157439]
[1722701849500,0.1,60842.0,60827.0,0.0494443]
[1722701849709,3.0,60831.0,60830.0,0.629775]
[1722701849909,3.0,60831.0,60830.0,1.29420669]
[1722701850116,3.0,60831.0,60830.0,1.5224038]
[1722701850595,3.0,60831.0,60830.0,0.8777238]
[1722701851100,3.0,60831.0,60830.0,1.15190924]
[1722701851353,3.0,60831.0,60830.0,0.11048242]
[1722701851597,3.0,60831.0,60817.0,0.04944124]
[1722701851598,3.25745924,60831.0,60817.0,0.04944124]
[1722701851836,3.25745924,60831.0,60813.0,0.04944652]
[1722701851837,0.07875194,60822.0,60813.0,0.04944652]
[1722701852051,0.07875194,60829.0,60806.0,0.37836052]
[1722701852052,0.13673552,60821.0,60806.0,0.37836052]
[1722701852306,0.36918909,60827.0,60810.0,0.07352795]
[1722701852524,3.09601089,60831.0,60830.0,0.014]
[1722701852525,3.629268,60831.0,60830.0,0.014]
[1722701852730,3.27281185,60831.0,60830.0,0.014]
[1722701852985,3.0,60831.0,60819.0,0.04944652]
[1722701853197,0.164393,60830.0,60820.0,0.00157439]
[1722701853440,3.0,60831.0,60820.0,0.16599339]
[1722701853441,0.001,60821.0,60820.0,0.16599339]
[1722701853687,0.001,60821.0,60820.0,0.493258]
[1722701853850,0.001,60821.0,60820.0,1.65874584]
[1722701853989,0.001,60821.0,60820.0,2.1670166]
[1722701854209,0.001,60821.0,60820.0,2.36308231]
[1722701854406,0.001,60821.0,60820.0,2.46599504]
[1722701854835,0.001,60821.0,60820.0,2.36301102]
[1722701855042,0.003,60827.0,60826.0,1.215711]
[1722701855291,0.003,60827.0,60826.0,1.44729052]
[1722701855602,3.0,60831.0,60830.0,1.193637]
[1722701855742,3.0,60831.0,60830.0,1.65739906]
[1722701855949,3.0,60831.0,60830.0,0.63632654]
[1722701856173,3.0,60831.0,60830.0,0.28976154]
[1722701856351,3.0,60831.0,60822.0,0.4871236]
[1722701856352,3.0,60831.0,60826.0,0.08019314]
[1722701856553,0.002,60827.0,60826.0,0.05889]
[1722701856832,0.002,60827.0,60826.0,1.04836424]
[1722701857043,0.002,60827.0,60826.0,1.50486725]
[1722701857248,0.002,60827.0,60826.0,1.43071599]
[1722701857435,0.001,60827.0,60826.0,1.56229853]
[1722701857643,0.001,60827.0,60826.0,1.46171599]
[1722701857777,0.001,60827.0,60826.0,1.11290999]
[1722701858214,0.001,60827.0,60826.0,1.46171599]
[1722701858421,0.001,60827.0,60826.0,1.59001459]
[1722701858603,3.0,60831.0,60830.0,0.207282]
[1722701858820,3.001,60831.0,60830.0,1.21212764]
[1722701859026,3.001,60831.0,60830.0,1.04531124]
[1722701859256,3.001,60831.0,60830.0,1.23638408]
[1722701859460,3.001,60831.0,60830.0,0.90759908]
[1722701859668,3.0,60831.0,60830.0,0.44123524]
[1722701859886,3.0,60831.0,60830.0,0.86888453]
[1722701860083,3.001,60831.0,60830.0,0.55409953]
[1722701860285,3.001,60831.0,60830.0,0.109384]
[1722701860497,3.001,60831.0,60830.0,0.17453379]
[1722701860697,3.001,60831.0,60830.0,0.014]
[1722701861294,3.002,60831.0,60830.0,0.028]
[1722701861513,3.166389,60831.0,60830.0,0.028]
[1722701861729,3.960047,60831.0,60830.0,0.028]
[1722701862149,4.42554112,60831.0,60830.0,0.028]
[1722701862575,4.47148932,60831.0,60830.0,0.014]
[1722701862769,3.18466332,60831.0,60816.0,0.33886]
[1722701862972,3.001,60831.0,60830.0,0.192392]
[1722701863189,3.001,60831.0,60830.0,0.99342124]
[1722701863388,3.001,60831.0,60830.0,1.56782441]
[1722701863726,3.008,60831.0,60830.0,1.49176678]
[1722701863933,3.005,60831.0,60830.0,1.64823714]
[1722701864141,3.007,60831.0,60830.0,1.54765678]
[1722701864344,3.007,60831.0,60830.0,1.21887178]
[1722701864545,3.007,60831.0,60830.0,1.54765678]